Workbook

Sheet 草案封面
A3: 陆丰市2024年预算调整草案
A5: 编制单位：陆丰市财政局
A6: 编制时间：二○二四年十二月

Sheet 一般公共预算调整表
A1: 陆丰市2024年一般公共预算调整表（草案）
A2: 附表1 | J2: 单位：万元 | K2: 单位：万元
A3: 收 入 | B3: 年初预算数 | C3: 调整数 | D3: 调整后预算数 | E3: 增加额 | F3: 增长% | G3: 支 出 | H3: 年初预算数 | I3: 调整数 | J3: 调整后预算数 | K3: 增加额 | L3: 增长%
A5: 一、一般公共预算收入 | B5: 145800 | C5: =C6+C7 -> 0 | D5: 145800 | E5: =D5-B5 -> 0 | F5: =E5/B5*100 -> 0.0 | G5: 一、一般公共预算支出 | H5: =H6+H7 -> 913326 | I5: =I6+I7 -> -9320 | J5: =J6+J7 -> 904006
A6: （一）税收收入 | B6: 70000 | C6: -18000 | D6: =B6+C6 -> 52000 | G6: （一）本级公共预算支出 | H6: 535012 | I6: -31705 | J6: =H6+I6 -> 503307
A7: （二）非税收入 | B7: 75800 | C7: 18000 | D7: 93800 | G7: （二）上级追加及提前下达资金、结转支出资金 | H7: 378314 | I7: 22385 | J7: =H7+I7 -> 400699
A8: 二、上级补助收入 | B8: =SUM(B9,B17,B22,B26) -> 610276 | C8: =SUM(C9,C17) -> 77099 | D8: 687375 | G8: 二、上解上级支出 | H8: =SUM(H9:H11) -> 30087 | J8: =SUM(J9:J11) -> 30087
A9: （一）可支配财力补助 | B9: =SUM(B10:B16) -> 243299 | C9: =SUM(C10:C16) -> 0 | D9: 243299 | E9: =D9-B9 -> 0 | F9: =E9/B9*100 -> 0.0 | G9: （一）上解省基数及专项借款 | H9: 25821 | J9: =H9+I9 -> 25821
A10: 1、税收返还 | B10: 10181 | D10: 10181 | E10: 0 | G10: （二）上缴省临时救助借款 | J10: =H10+I10 -> 0
A11: 2、均衡性转移支付 | B11: 110742 | D11: 110742 | E11: 0 | F11: =E11/B11*100 -> 0.0 | G11: （三）上划法院、检察院经费基数 | H11: 4266 | J11: 4266
A12: 3、县级基本财力保障 | B12: 80893 | D12: 80893 | G12: 三、安排预算稳定调节基金
A13: 4、固定数据补助支出 | B13: 14349 | D13: 14349 | E13: 0 | F13: 0.0 | G13: 四、地方债券转货支出 | J13: 0
A14: 5、企业事业单位划转补助收入（含工商质监） | B14: 3773 | D14: 3773 | E14: 0 | F14: 0.0 | G14: 五、地方债券还本支出 | H14: 3200 | I14: 49000 | J14: 52200
A15: 6、其他转移性收入（革命老区转移支付等） | B15: 20745 | D15: 20745 | E15: 0 | F15: 0.0
A16: 7、上级追加补助资金 | B16: 2616 | D16: 2616 | E16: 0 | F16: 0.0
A17: （二）不可支配财力补助（上级追加和提前下达资金） | B17: =197916+114061 -> 311977 | C17: 77099 | D17: 389076
A18: 三、调入资金（基金收入等） | B18: 60000 | C18: -50000 | D18: 10000 | E18: =D18-B18 -> -50000
A19: 四、调入预算稳定调节基金 | B19: 1000 | C19: -328 | D19: 672
A20: 五、收回存量资金统筹收入 | B20: =B21+B22 -> 95000 | C20: =C21+C22 -> 11000 | D20: 106000
A21: 1、收回统筹存量资金 | B21: 40000 | C21: 66000 | D21: 106000
A22: 2、调入国有资本经营预算 | B22: 55000 | C22: -55000 | D22: 0
A23: 六、债务收入 | B23: =B24+B25 -> 23200 | C23: =C24+C25 -> 56680 | D23: 79880
A24: 1、地方政府债券转贷收入（含置换债券） | B24: 23200 | C24: 46680 | D24: 69880
A25: 2、上级临时救助借款 | C25: 10000 | D25: 10000
A26: 七、调剂使用上级补助 | D26: 0
A27: 八、上年结转收入 | B27: 66337 | C27: -4714 | D27: 61623
A28: 1、上年结转 | B28: 66337 | C28: -4714 | D28: 61623 | G28: 六、财政总支出 | H28: =H5+H8+H12+H14 -> 946613 | I28: =I5+I8+I12+I14 -> 39680 | J28: =J5+J8+J12+J14 -> 986293
A29: 2、净结余 | D29: 0 | G29: 七、剔除上级追加后总支出 | H29: =H28-H7 -> 568299 | J29: =J28-J7 -> 585594
A30: 本级可安排财力合计 | B30: =B5+B9+B18+B19+B20+B26+B23+B29 -> 568299 | C30: 17352 | D30: =D5+D9+D18+D19+D20+D26+D23+D29 -> 585651 | E30: =E5+#REF!+E9+#REF! ->  | F30: =E30/B30*100 ->  | G30: 八、年终结余 | I30: 50057 | J30: =H30+I30 -> 50057
A31: 加：不可支配财力补助 | B31: =197916+114061 -> 311977 | C31: 77099 | D31: 389076 | G31: 其中：结转下年支出 | I31: 50000 | J31: 50000
A32: 上年结转 | B32: 66337 | C32: -4714 | D32: 61623 | G32: 净结余 | I32: 57 | J32: 57
A33: 合 计 | B33: =B30+B31+B32 -> 946613 | C33: =C30+C31+C32 -> 89737 | D33: =D30+D31+D32 -> 1036350 | G33: 合 计 | H33: =H28+H30 -> 946613 | J33: =J28+J30 -> 1036350 | K33: =#REF!+K30 ->  | L33: =#REF!+L30 -> 
A142: 重大公共卫生项目 | G142: 376 | M142: 新生儿缺陷防控，防控中心、艾滋病等防治经费
M148: 四术经费、流动人口计生经费、考核、孕前检查等
G175: 1000

Sheet 一般公共预算支出调整表
A1: 陆丰市2024年一般公共预算本级支出调整预算表(草案）
A2: 附表2 | D2: 单位：万元
A3: 项 目 | B3: 年初本级预算数 | C3: 调整金额 | D3: 调整后本级预算数
A5: 一般公共预算支出合计 | B5: =SUM(B6:B26) -> 535012 | C5: =SUM(C6:C26) -> -31,705 | D5: =SUM(D6:D11,D12,D13:D15,D16,D17:D26) -> 503307
A6: 一、一般公共服务 | B6: 65426 | C6: =0-1659 -> -1659 | D6: =B6+C6 -> 63767
A7: 二、公共安全 | B7: 53095 | C7: =0+-1135 -> -1135 | D7: 51960
A8: 三、教育 | B8: 182819 | C8: =-4000-130 -> -4130 | D8: 178689
A9: 四、科学技术 | B9: 1144 | C9: =0-9 -> -9 | D9: 1135
A10: 五、文化体育与传媒 | B10: 8940 | C10: =-2000-198 -> -2198 | D10: 6742
A11: 六、社会保障和就业 | B11: 91447 | C11: =-4000-188 -> -4188 | D11: 87259
A12: 七、医疗卫生 | B12: 45371 | C12: =-3500-93 -> -3593 | D12: 41778
A13: 八、节能环保 | B13: 3506 | C13: -1000 | D13: 2506
A14: 九、城乡社区 | B14: 20485 | C14: =-5000-240 -> -5240 | D14: 15245
A15: 十、农林水 | B15: 14370 | C15: =-4500-132 -> -4632 | D15: 9738
A16: 十一、交通运输 | B16: 9883 | C16: =-5000-6 -> -5006 | D16: 4877
A17: 十二、资源勘探电力信息等 | B17: 525 | C17: -5 | D17: 520
A18: 十三、商业服务业等 | B18: 762 | D18: 762
A19: 十四、金融支出 | D19: 0
A20: 十五、国土资源气象等 | B20: 3952 | C20: =-500-2 -> -502 | D20: 3450
A21: 十六、住房保障支出 | B21: 18685 | C21: -500 | D21: 18185
A22: 十七、粮油物资储备 | B22: 2700 | D22: 2700
A23: 十八、灾害防治及应急管理 | B23: 2717 | C23: -118 | D23: 2599
A24: 十九、预备费 | D24: 0
A25: 二十、债务付息及发行费支出 | B25: 4300 | C25: 2210 | D25: 6510
A26: 二十一、其他支出 | B26: 4885 | D26: 4885
A140: 重大公共卫生项目

Sheet 政府性基金调整表
A1: 陆丰市2024年政府性基金预算调整表（草案）
A2: 附表3 | I2: 单位：万元
A3: 收入项目 | B3: 年初预算数 | C3: 调整数 | D3: 调整后预算数 | F3: 年初预算数 | G3: 调整数 | I3: 调整后预算数
E4: 支出项目
G5: 追加（减）安排 | H5: 债券资金
A6: 一、基金预算收入 | B6: =SUM(B7:B24) -> 158,877 | C6: =SUM(C7:C23) -> -80,007 | D6: 78,870 | E6: 一、基金预算支出 | F6: =SUM(F7:F26) -> 352,806 | G6: =SUM(G7:G26) -> 8,373 | H6: -50,300 | I6: 310,879
A7: 1、国家电影事业发展专项资金收入 | D7: =B7+C7 -> 0 | E7: 1、国家电影事业发展专项资金相关支出 | F7: 9 | I7: =F7+G7+H7 -> 9
A8: 2、大中型水库移民后期扶持基金收入 | D8: =B8+C8 -> 0 | E8: 2、大中型水库移民后期扶持基金支出 | F8: 1,566 | G8: 73 | I8: =F8+G8+H8 -> 1,639
A9: 3、小型水库移民扶助基金收入 | D9: 0 | E9: 3、小型水库移民扶助基金相关支出 | F9: 733 | I9: =F9+G9+H9 -> 733
A10: 4、国有土地使用权出让收入 | B10: 152,307 | C10: -81,307 | D10: =B10+C10 -> 71,000 | E10: 4、政府住房基金相关支出 | I10: 0
A11: 5、城市公用事业附加收入 | D11: =B11+C11 -> 0 | E11: 5、国有土地使用权出让相关支出 | F11: 55,000 | G11: -20,000 | I11: 35,000
A12: 6、国有土地收益基金收入 | D12: 0 | E12: 6、城市公用事业附加相关支出 | F12: 0 | I12: 0
A13: 7、农业土地开发资金收入 | D13: 0 | E13: 7、国有土地收益基金相关支出 | G13: 200 | I13: 200
A14: 8、新增建设用地土地有偿使用费收入 | D14: 0 | E14: 8、农业土地开发资金相关支出 | F14: 502 | G14: -100 | I14: 402
A15: 9、城市基础设施配套费收入 | B15: 3,000 | C15: 1,000 | D15: 4,000 | E15: 9、新增建设用地有偿使用费支出 | I15: 0
A16: 10、污水处理费收入 | B16: 2,320 | C16: 200 | D16: 2,520 | E16: 10、城市基础设施配套费相关支出 | F16: 3,000 | G16: -2,500 | I16: 500
A17: 11、大中型水库库区基金收入 | D17: 0 | E17: 11、大中型水库库区基金相关支出 | F17: 81 | I17: 81
A18: 12、港口建设费收入 | D18: 0 | E18: 12、港口建设费相关支出 | I18: 0
A19: 14、散装水泥专项资金收入 | D19: 0 | E19: 13、无线电频率占用费安排的支出 | I19: 0
A20: 15、新型墙体材料专项基金收入 | D20: 0 | E20: 14、散装水泥专项资金相关支出 | I20: 0
A21: 16、旅游发展基金收入 | B21: 0 | D21: 0 | E21: 15、新型墙体材料专项基金相关支出 | I21: 0
A22: 17、彩票公益金收入 | B22: 1,250 | C22: 100 | D22: 1,350 | E22: 16、彩票公益金相关支出 | F22: 1,910 | G22: -910 | I22: 1,000
A23: 18、其他政府性基金收入 | E23: 17、污水处理费相关支出 | F23: 2,320 | G23: -320 | I23: 2,000
E24: 18、商业服务业等支出 | I24: 0
E25: 19、债务付息（发行费）支出 | F25: 37,685 | G25: 31,930 | I25: 69,615
E26: 20、其他政府性基金支出（专项债支出） | F26: 250,000 | H26: -50,300 | I26: 199,700
A28: 二、调入资金 | C28: 30,000 | D28: 30,000 | E28: 二、上解支出 | I28: =F28+G28+H28 -> 0
A29: 三、地方专项债券 | B29: 299,680 | C29: -42,630 | D29: 257,050 | E29: 三、专项债券还本支出 | F29: 49,680 | I29: =F29+G29+H29 -> 49,680
A30: 四、基金补助收入 | B30: 3,551 | C30: 679 | D30: 4,230 | E30: 四、政府性基金调出资金 | F30: 60,000 | G30: -50,000 | I30: =F30+G30+H30 -> 10,000
A31: 五、上年结转收入 | B31: 378 | C31: 31 | D31: 409 | E31: 五、结转下年支出 | I31: =F31+G31+H31 -> 0
A32: 基 金 收 入 总 计 | B32: =B6+B28+B29+B30+B31 -> 462,486 | C32: -91,927 | D32: =D6+D28+D29+D30+D31 -> 370,559 | E32: 基 金 支 出 总 计 | F32: =F6+F29+F30 -> 462,486 | G32: =G6+G29+G30 -> -41,627 | H32: -50,300 | I32: 370,559

Sheet 国有资本经营预算调整表
A1: 陆丰市2024年国有资本经营预算调整表（草案）
A3: 附表4 | H3: 单位：万元
A4: 收入项目 | B4: 年初预算数 | C4: 调整数 | D4: 调整后预算数 | E4: 支出项目 | F4: 年初预算数 | G4: 调整数 | H4: 调整后预算数
A6: 一、利润收入 | B6: 500 | D6: =B6+C6 -> 500 | E6: 一、国有资本经营预算支出 | F6: =SUM(F7:F10) -> 5,666 | G6: =SUM(G7:G10) -> -5,100 | H6: =F6+G6 -> 566
A7: 二、股利、股息收入 | D7: =B7+C7 -> 0 | E7: 1、解决历史遗留问题及改革成本支出 | F7: 5,000 | G7: -5,000 | H7: =F7+G7 -> 0
A8: 三、产权转让收入 | B8: 60,000 | C8: -60,000 | D8: 0 | E8: 2、国有企业资本金注入 | H8: 0
A9: 1、供水股权出让收入 | B9: 60,000 | C9: -60,000 | D9: 0 | E9: 3、国有企业政策性补贴 | F9: =66-14 -> 52 | H9: 52
A10: 四、清算收入 | D10: =B10+C10 -> 0 | E10: 4、其他国有资本经营预算支出 | F10: 614 | G10: -100 | H10: =F10+G10 -> 514
A11: 五、其他国有资本经营收入 | B11: 100 | C11: -100 | D11: 0 | E11: 二、转移性支出 | F11: 55,000 | G11: -55,000 | H11: 0
A12: 六、国有资本经营预算转移支付收入 | B12: 26 | D12: 26 | E12: 1、国有资本经营预算转移支付 | H12: 0
D13: 0 | E13: 2、调出资金 | F13: 55,000 | G13: -55,000 | H13: 0
D14: 0 | H14: 0
D15: 0 | H15: 0
A16: 本年收入合计 | B16: =B6+B7+B8+B10+B11+B12 -> 60,626 | C16: =C6+C7+C8+C10+C11+C12 -> -60,100 | D16: 526 | E16: 本年支出合计 | F16: =F6+F11 -> 60,666 | G16: =G6+G11 -> -60,100 | H16: 566
A17: 上年结转 | B17: 40 | D17: 40 | E17: 结转下年
A18: 其中：净结余 | B18: 14 | D18: 14 | E18: 其中：净结余
A19: 项目结转 | B19: 26 | D19: 26 | E19: 项目结转
A21: 收入总计 | B21: =B16+B17 -> 60,666 | C21: =C16+C17 -> -60,100 | D21: =D16+D17 -> 566 | E21: 支出总计 | F21: =F16+F17 -> 60,666 | G21: =G16+G17 -> -60,100 | H21: =H16+H17 -> 566

Sheet 政府性债券安排表
A1: 陆丰市2024年新增政府性债券资金安排调整表
A2: 附表5 | R2: 单位：万元
A3: 序号 | B3: 新增债券使用项目 | C3: 债券类型 | D3: 管理使用单位 | E3: 主管部门 | F3: 1月提前批 | G3: 3月提前批 | H3: 5月提前批下旬 | I3: 6月提前批中旬 | J3: 8月提前批发行 | K3: 第二批8月下旬 | L3: 第二批9月发行 | M3: 第三批安排 | N3: 债券额度安排 | O3: 9月调整批 | P3: 11月调整批 | Q3: 调整后债券安排 | R3: 备注
A5: 1 | B5: 2023年度30宗小型水库除险加固工程 | C5: 一般债券 | D5: 陆丰市水利工程建设管理中心 | E5: 陆丰市水务局 | F5: 5,400 | N5: 5,400 | Q5: 5,400
A6: 2 | B6: 陆丰市乌坎村乡村振兴配套设施建设项目 | C6: 一般债券 | D6: 陆丰市东海街道办事处 | E6: 陆丰市东海街道办事处 | F6: 1,000 | N6: 1,000 | Q6: 1,000
A7: 3 | B7: 陆丰市长安路、永泰路环境提升项目 | C7: 一般债券 | D7: 陆丰市住房和建设局 | E7: 陆丰市住房和建设局 | F7: 1,000 | K7: 1,500 | N7: 2,500 | Q7: 2,500
A8: 4 | B8: 陆丰市博社农旅融合生态农业示范园项目 | C8: 一般债券 | D8: 陆丰市甲西镇人民政府 | E8: 陆丰市甲西镇人民政府 | F8: 600 | N8: 600 | P8: -600 | Q8: 0
A9: 5 | B9: 国道228线甲子至南塘段改建工程 | C9: 一般债券 | D9: 陆丰市交通运输局 | E9: 陆丰市交通运输局 | K9: 7,000 | N9: 7,000 | P9: 600 | Q9: 7,600
A10: 6 | B10: 陆丰市龙井头等5宗小型水库除险加固工程 | C10: 一般债券 | D10: 陆丰市水利工程建设管理中心 | E10: 陆丰市水务局 | K10: 1,500 | N10: 1,500 | Q10: 1,500
A11: 7 | B11: 陆丰市碣石海工基地（二期）项目 | C11: 专项债券 | D11: 陆丰市碣石临港工业园开发有限公司 | E11: 陆丰市科技工业和信息化局 | F11: 5,000 | M11: 2,000 | N11: 7,000 | Q11: 7,000
A12: 8 | B12: 陆丰市高质量推进农村生活污水治理项目 | C12: 专项债券 | D12: 陆丰市住房和城乡建设局 | E12: 陆丰市住房和城乡建设局 | F12: 8,000 | I12: 3,000 | K12: 5,000 | M12: 4,000 | N12: 20,000 | Q12: 20,000
A13: 9 | B13: 陆丰市乡村振兴人居环境提升建设工程 | C13: 专项债券 | D13: 陆丰市农业农村局 | E13: 陆丰市农业农村局 | G13: 10,000 | I13: 2,000 | M13: 8,000 | N13: 20,000 | Q13: 20,000
A14: 10 | B14: 陆丰市文化创意产业园片区基础设施项目 | C14: 专项债券 | D14: 陆丰市住房和城乡建设局 | E14: 陆丰市住房和城乡建设局 | G14: 6,000 | I14: 4,000 | N14: 10,000 | O14: -3,500 | Q14: 6,500
A15: 11 | B15: 陆丰市高铁枢纽一体化建设工程 | C15: 专项债券 | D15: 陆丰市交通运输局 | E15: 陆丰市交通运输局 | G15: 7,000 | N15: 7,000 | Q15: 7,000
A16: 12 | B16: 星都经济开发区产业园区基础设施配套工程（二期） | C16: 专项债券 | D16: 陆丰星都管理办公室 | E16: 陆丰星都管理办公室 | G16: 3,000 | I16: 3,500 | K16: 9,000 | N16: 15,500 | P16: -1,000 | Q16: 14,500
A17: 13 | B17: 陆丰市金厢镇十二岗村乡村振兴配套基础设施建设工程 | C17: 专项债券 | D17: 陆丰市金厢镇人民政府 | E17: 陆丰市金厢镇人民政府 | H17: 2,000 | L17: 1,000 | N17: 3,000 | Q17: 3,000
A18: 14 | B18: 陆丰市螺河至碣石引水工程 | C18: 专项债券 | D18: 陆丰市城乡供水有限公司 | E18: 陆丰市水务局 | H18: 5,000 | K18: 5,000 | N18: 10,000 | Q18: 10,000
A19: 15 | B19: 陆丰市渔港经济区甲子渔港核心区建设工程项目 | C19: 专项债券 | D19: 陆丰市甲子镇人民政府 | E19: 陆丰市甲子镇人民政府 | H19: 6,500 | K19: 8,000 | N19: 14,500 | P19: -1,000 | Q19: 13,500
A20: 16 | B20: 陆丰市金厢渔港建设项目 | C20: 专项债券 | D20: 陆丰市农业农村局 | E20: 陆丰市农业农村局 | H20: 3,000 | K20: 2,000 | N20: 5,000 | Q20: 5,000
A21: 17 | B21: 陆丰市碣石海工基地（三期）项目 | C21: 专项债券 | D21: 陆丰市碣石临港工业园开发有限公司 | E21: 陆丰市科技工业和信息化局 | I21: 8,000 | N21: 8,000 | Q21: 8,000
A22: 18 | B22: 陆丰市高级技工学校新建项目 | C22: 专项债券 | D22: 陆丰市人力资源和社会保障局 | E22: 陆丰市人力资源和社会保障局 | I22: 6,200 | K22: 2,000 | N22: 8,200 | Q22: 8,200
A23: 19 | B23: 陆丰市第二污水处理厂（一期）工程及配套管网工程 | C23: 专项债券 | D23: 陆丰市住房和城乡建设局 | E23: 陆丰市住房和城乡建设局 | I23: 2,000 | N23: 2,000 | Q23: 2,000
A24: 20 | B24: 陆丰市东海镇老旧小区综合改造项目 | C24: 专项债券 | D24: 陆丰市东海街道办事处 | E24: 陆丰市东海街道办事处 | I24: 3,000 | K24: 2,000 | N24: 5,000 | O24: 1,000 | Q24: 6,000
A25: 21 | B25: 陆丰市冷链物资仓库新建项目 | C25: 专项债券 | D25: 陆丰市发展和改革局 | E25: 陆丰市发展和改革局 | I25: 2,000 | K25: 1,000 | N25: 3,000 | Q25: 3,000
A26: 22 | B26: 陆丰市城东街道至陂洋区域停车设施及道路升级改造工程 | C26: 专项债券 | D26: 陆丰市公路事务中心 | E26: 陆丰市公路事务中心 | I26: 1,000 | K26: 2,000 | L26: 1,000 | N26: 4,000 | P26: -1,000 | Q26: 3,000
A27: 23 | B27: 陆丰市陆城供水管网扩建和改造工程 | C27: 专项债券 | D27: 陆丰市城乡供水有限公司 | E27: 陆丰市水务局 | I27: 2,000 | N27: 2,000 | Q27: 2,000
A28: 24 | B28: 陆丰产业转移工业园（省级）基础设施建设项目 | C28: 专项债券 | D28: 陆丰市住房和城乡建设局 | E28: 陆丰市住房和城乡建设局 | I28: 2,000 | N28: 2,000 | O28: -2,000 | Q28: 0
A29: 25 | B29: 陆丰市碣石镇玄武山自来水厂扩容提质及老旧管道改造工程项目 | C29: 专项债券 | D29: 陆丰市碣石镇人民政府 | E29: 陆丰市碣石镇人民政府 | I29: 2,000 | N29: 2,000 | P29: -2,000 | Q29: 0
A30: 26 | B30: 陆丰市碣石渔港建设及基础设施配套工程项目 | C30: 专项债券 | D30: 陆丰市农业农村局 | E30: 陆丰市农业农村局 | J30: 1,500 | K30: 3,000 | N30: 4,500 | P30: -1,000 | Q30: 3,500
A31: 27 | B31: 陆丰市东海镇乌坎渔港建设工程项目 | C31: 专项债券 | D31: 陆丰市农业农村局 | E31: 陆丰市农业农村局 | J31: 7,000 | N31: 7,000 | O31: -2,000 | P31: -1,000 | Q31: 4,000
A32: 28 | B32: 陆丰市螺河(陆丰段)流域水环境综合整治工程 | C32: 专项债券 | D32: 陆丰市水利工程建设管理中心 | E32: 陆丰市水务局 | K32: 3,000 | N32: 3,000 | O32: 1,300 | Q32: 4,300
A33: 29 | B33: 陆丰市乌坎河流域河道综合治理工程 | C33: 专项债券 | D33: 陆丰市水利工程建设管理中心 | E33: 陆丰市水务局 | K33: 4,000 | N33: 4,000 | Q33: 4,000
A34: 30 | B34: 陆丰市南塘镇人居环境基础设施建设工程 | C34: 专项债券 | D34: 陆丰市南塘镇人民政府 | E34: 陆丰市南塘镇人民政府 | L34: 2,000 | N34: 2,000 | Q34: 2,000
A35: 31 | B35: 陆丰市城东镇农村产业基础设施提升项目 | C35: 专项债券 | D35: 陆丰市城东街道办事处 | E35: 陆丰市城东街道办事处 | K35: 1,000 | M35: 1,000 | N35: 2,000 | Q35: 2,000
A36: 32 | B36: 陆丰市八万河水环境综合整治工程 | C36: 专项债券 | D36: 陆丰市八万镇人民政府 | E36: 陆丰市水务局 | K36: 1,000 | N36: 1,000 | Q36: 1,000
A37: 33 | B37: 陆丰市职业技术学校等3所职校实训配套设施及碣石新安职业技术学校教学楼建设工程项目 | C37: 专项债券 | D37: 陆丰市教育局 | E37: 陆丰市教育局 | K37: 2,000 | N37: 2,000 | Q37: 2,000
A38: 34 | B38: 陆丰市城区雨污分流及排水系统整治工程项目 | C38: 专项债券 | D38: 陆丰市住房和城乡建设局 | E38: 陆丰市住房和城乡建设局 | K38: 4,000 | N38: 4,000 | Q38: 4,000
A39: 35 | B39: 陆丰市三甲地区工业园区基础设施项目 | C39: 专项债券 | D39: 陆丰市市政投资建设公司 | E39: 陆丰市甲东镇人民政府 | K39: 1,000 | N39: 1,000 | O39: 2,700 | Q39: 3,700
A40: 36 | B40: 陆丰市预制菜产业园建设项目 | C40: 专项债券 | D40: 陆丰市农业农村局 | E40: 陆丰市农业农村局 | K40: 4,000 | N40: 4,000 | P40: -2,000 | Q40: 2,000
A41: 37 | B41: 陆丰东海经济开发区碣石产业园（一期）建设项目 | C41: 专项债券 | D41: 陆丰市碣石镇人民政府 | E41: 陆丰市碣石镇人民政府 | K41: 1,000 | N41: 1,000 | Q41: 1,000
A42: 38 | B42: 陆丰市碣石大桥桥闸重建工程 | C42: 专项债券 | D42: 陆丰市水利工程建设管理中心 | E42: 陆丰市水务局 | L42: 1,000 | N42: 1,000 | Q42: 1,000
A43: 39 | B43: 陆丰市甲子镇综合管网及配套设施提升改造项目 | C43: 专项债券 | D43: 陆丰市甲子镇人民政府 | E43: 陆丰市甲子镇人民政府 | L43: 2,000 | N43: 2,000 | P43: -1,000 | Q43: 1,000
A44: 40 | B44: 陆丰市乡村振兴共同富裕示范带建设工程 | C44: 专项债券 | D44: 陆丰市农业农村局 | E44: 陆丰市农业农村局 | M44: 20,000 | N44: 20,000 | O44: 2,500 | P44: 5,000 | Q44: 27,500
A45: 41 | B45: 陆丰市第四人民医院（陆丰市精神病院）建设项目 | C45: 专项债券 | D45: 陆丰市慢性病防治站 | E45: 陆丰市卫生健康局 | M45: 2,500 | N45: 2,500 | Q45: 2,500
A46: 42 | B46: 陆丰东海经济开发区产业园区二期基础设施配套建设项目 | C46: 专项债券 | D46: 广东陆丰东海经济开发区管理委员会 | E46: 广东陆丰东海经济开发区管理委员会 | M46: 3,000 | N46: 3,000 | Q46: 3,000
A47: 43 | B47: 陆丰市乌坎滨海旅游环境综合整治项目 | C47: 专项债券 | D47: 陆丰市东海街道办事处 | E47: 陆丰市东海街道办事处 | M47: 2,500 | N47: 2,500 | Q47: 2,500
A48: 合 计 | F48: =SUM(F5:F47) -> 21,000 | G48: 26,000 | H48: 16,500 | I48: 40,700 | J48: 8,500 | K48: 70,000 | L48: 7,000 | M48: 43,000 | N48: =SUM(N5:N47) -> 232,700 | O48: =SUM(O5:O47) -> 0 | P48: =SUM(P5:P47) -> -5,000 | Q48: =SUM(Q5:Q47) -> 227,700
